bitfinex/quotes_ETHUSD_20250827
["timestamp","ask_amount","ask_price","bid_price","bid_amount"]
[1756264708722,2.18871063,4568.9,4568.8,3.706]
[1756264708942,2.18865287,4569.1,4568.8,3.706]
[1756264709146,3.0,4569.4,4568.8,3.706]
[1756264709349,2.19032282,4569.8,4568.9,2.72769725]
[1756264709545,0.002,4569.8,4568.9,0.539]
[1756264709762,0.002,4569.8,4569.0,0.4245]
[1756264709763,2.18834656,4569.7,4569.0,0.4245]
[1756264710122,0.002,4569.8,4569.1,2.18861173]
[1756264710834,0.002,4569.8,4569.0,2.61311524]
[1756264711048,0.002,4569.8,4569.1,2.18859701]
[1756264711645,0.002,4569.8,4569.2,2.18854344]
[1756264711851,0.002,4569.8,4569.3,3.684]
[1756264712031,0.002,4569.8,4569.4,3.69531897]
[1756264712232,0.002,4569.8,4569.5,3.87240849]
[1756264712440,0.002,4569.8,4569.6,2.18836126]
[1756264712636,0.002,4569.8,4569.6,0.97448696]
[1756264713845,0.002,4569.8,4569.7,0.0113168]
[1756264714049,0.002,4569.8,4569.6,3.16285656]
[1756264714214,0.002,4569.8,4569.6,0.97448696]
[1756264714551,0.002,4569.8,4569.7,0.8530902]
[1756264714719,0.002,4569.8,4569.7,3.70141766]
[1756264716142,2.18861482,4569.1,4568.5,0.001]
[1756264716364,2.18861482,4569.1,4564.7,2.19068417]
[1756264716365,3.0,4568.9,4566.7,0.028]
[1756264716534,9.284885,4567.9,4566.7,0.028]
[1756264716741,9.284885,4567.9,4566.2,1.683]
[1756264716742,5.18918978,4567.9,4567.5,0.663]
[1756264716964,5.39187122,4567.9,4567.5,0.7726]
[1756264717281,5.39187122,4567.9,4567.5,0.1096]
[1756264718455,3.20268144,4567.9,4567.5,0.1096]
[1756264718645,0.20268144,4567.9,4567.5,0.1096]
[1756264718846,2.39178402,4568.1,4567.5,0.1096]
[1756264719043,0.20268144,4568.0,4567.5,0.1096]
[1756264719247,0.20268144,4568.0,4567.2,3.58151056]
[1756264719248,0.20268144,4568.1,4567.3,2.18942962]
[1756264719573,2.39173999,4568.2,4567.8,0.1296]
[1756264719743,0.20268144,4568.1,4567.8,0.1296]
[1756264720336,2.29861798,4568.3,4567.8,0.1296]
[1756264720536,2.39158749,4568.2,4567.8,0.1296]
[1756264720765,0.1096,4568.3,4567.8,0.1296]
[1756264721072,0.1096,4568.5,4567.8,3.9496]
[1756264721382,0.58105255,4568.5,4567.8,3.84]
[1756264721554,0.20253868,4568.4,4567.8,3.84]
[1756264721755,0.20253868,4568.4,4567.8,0.02]
[1756264721756,2.18909637,4568.1,4567.8,0.02]
[1756264722068,2.18911083,4568.1,4567.8,0.02]
[1756264722271,0.3075,4567.9,4567.8,0.02]
[1756264724881,0.473,4568.3,4567.8,0.02]
[1756264725085,2.18886851,4568.6,4567.8,0.323]
[1756264725392,0.20244553,4568.5,4567.8,0.323]
[1756264725540,0.65833,4570.0,4567.8,0.323]
[1756264725541,0.20244553,4569.3,4568.0,0.66]
[1756264725740,0.20244553,4569.9,4568.4,2.18891441]
[1756264725937,0.74131998,4569.8,4568.5,0.01132547]
[1756264726141,0.20244553,4569.7,4568.9,2.18867424]
[1756264726353,0.20244553,4569.7,4569.0,5.65365359]
[1756264726554,0.20244553,4569.7,4569.6,0.303]
[1756264726758,0.002,4569.8,4569.6,0.303]
[1756264726952,0.002,4569.8,4569.2,2.18856556]
[1756264726953,0.002,4569.8,4569.3,2.18851267]
[1756264727449,0.002,4569.8,4569.7,0.303]
[1756264727651,0.002,4569.8,4569.7,4.114]
[1756264728148,0.002,4569.8,4569.7,4.12531633]
[1756264728773,0.002,4569.8,4569.7,3.811]
[1756264728957,0.3095,4569.8,4569.7,3.811]
[1756264729165,0.3095,4569.8,4569.1,2.18860427]
[1756264729486,0.002,4569.8,4569.7,0.303]
[1756264729699,0.002,4569.8,4569.7,4.12231633]
[1756264729862,0.002,4569.8,4569.7,4.111]
[1756264730590,0.002,4569.8,4569.7,0.303]
[1756264730816,0.002,4569.8,4569.7,4.11]
[1756264731158,0.002,4569.8,4569.7,4.108]
[1756264731355,0.002,4569.8,4569.7,0.303]
[1756264731555,0.002,4569.8,4569.7,4.107]
[1756264732985,0.002,4569.8,4569.7,4.5462]
[1756264733182,0.002,4569.8,4569.7,7.41894967]
[1756264733397,0.002,4569.8,4569.7,8.18854967]
[1756264733608,0.002,4569.8,4569.7,4.38454967]
[1756264733766,0.002,4569.8,4569.7,8.18854967]
[1756264734166,0.002,4569.8,4569.7,4.38454967]
[1756264734362,0.002,4569.8,4569.7,8.18854967]
[1756264734764,0.002,4569.8,4569.7,8.18754967]
[1756264737039,1e-08,4569.8,4569.7,7.38454967]
[1756264737319,1e-08,4569.8,4569.7,11.18554967]
[1756264739605,1e-08,4569.8,4569.7,11.18154967]
[1756264742505,1e-08,4569.8,4569.7,11.17954967]
[1756264743711,1e-08,4569.8,4569.7,11.17554967]
[1756264744206,1e-08,4569.8,4569.7,6.94534967]
[1756264744409,0.75170001,4569.8,4569.7,0.1096]
[1756264744610,0.75170001,4569.8,4569.7,3.8996]
[1756264744820,0.75170001,4569.8,4569.7,6.08792746]
[1756264745309,0.31060001,4569.8,4569.7,6.08792746]
[1756264745509,1e-08,4569.8,4569.7,6.08792746]
[1756264746012,0.31060001,4569.8,4569.7,6.08792746]
[1756264747610,30.66,4569.7,4564.8,2.329]
[1756264747924,3.3106,4566.9,4564.8,0.02]
[1756264748219,2.18986737,4566.5,4566.1,0.1096]
[1756264748417,2.18986737,4566.5,4564.8,0.02]
[1756264748418,2.18995685,4566.3,4564.8,0.02]
[1756264748586,2.19054528,4565.1,4564.9,1.114]
[1756264748783,3.62098252,4565.0,4564.8,0.02]
[1756264748985,0.3106,4565.0,4564.8,0.02]
[1756264749321,1.683,4566.1,4564.8,0.02]
[1756264749322,0.4411,4566.4,4565.2,2.19047632]
[1756264749494,0.4411,4566.4,4566.1,0.1096]
[1756264749696,0.4411,4566.4,4566.1,4.0136]
[1756264749904,0.3106,4566.2,4566.1,4.0136]
[1756264750720,0.3106,4566.2,4564.1,0.4494]
[1756264750721,0.7517,4566.2,4564.1,0.4494]
[1756264750895,0.7517,4566.2,4565.0,4.3524]
[1756264750896,0.3106,4566.2,4565.0,4.3524]
[1756264751100,0.3106,4566.2,4565.1,0.66]
[1756264751496,0.4411,4566.1,4565.1,0.66]
[1756264751687,0.4411,4566.1,4565.2,3.916]
[1756264751891,0.4411,4566.1,4565.2,6.10647964]
[1756264752224,0.3427384,4566.8,4565.6,0.001]
[1756264752225,2.63092692,4566.6,4565.6,0.001]
[1756264752395,2.63092692,4566.6,4565.7,3.916]
[1756264752724,0.3427384,4566.8,4565.7,3.916]
[1756264752725,0.3106,4565.8,4565.7,3.916]
[1756264753228,0.3106,4565.8,4565.7,4.3077]
[1756264754028,0.3627384,4566.8,4565.7,4.31906426]
[1756264754232,0.8038384,4566.8,4565.8,1.683]
[1756264754525,2.18977066,4566.7,4565.9,0.59917]
[1756264754838,0.3106,4566.0,4565.8,0.02]
[1756264755027,2.19014871,4565.9,4565.8,0.02]
[1756264755197,2.63124871,4565.9,4565.8,0.02]
[1756264755401,2.94184871,4565.9,4565.8,0.02]
[1756264755622,0.7517,4565.9,4565.8,0.02]
[1756264755824,0.3106,4565.9,4565.8,0.02]
[1756264756002,0.7517,4565.9,4565.8,0.02]
[1756264756496,2.94184871,4565.9,4565.8,0.02]
[1756264756829,3.23603358,4565.9,4565.8,0.02]
[1756264757028,3.7517,4565.9,4565.8,0.02]
[1756264757521,5.94184871,4565.9,4565.8,0.02]
[1756264760926,6.05144871,4565.9,4565.8,0.02]
[1756264762704,6.39422913,4565.9,4565.8,0.02]
[1756264764738,2.19029262,4565.6,4565.1,0.001]
[1756264764923,2.19029262,4565.6,4563.2,0.4494]
[1756264764924,2.19090586,4564.4,4563.2,0.4494]
[1756264765107,0.02738465,4564.6,4563.2,0.4494]
[1756264765304,2.19087279,4564.4,4563.1,3.87545726]
[1756264765507,0.3106,4563.9,4563.1,1.684]
[1756264765709,2.50170848,4563.9,4563.1,1.684]
[1756264765908,2.97019733,4563.9,4563.1,1.684]
[1756264766109,0.3106,4563.9,4563.1,2.1334]
[1756264766349,2.50170848,4563.9,4563.1,1.684]
[1756264767039,0.3106,4563.9,4563.1,2.1334]
[1756264767341,0.3106,4563.9,4562.8,0.02]
[1756264767342,2.50170848,4563.9,4562.8,0.02]
[1756264767541,3.27098173,4563.9,4562.8,0.02]
[1756264767738,2.50170848,4563.9,4563.0,0.4371]
[1756264769656,0.3106,4563.9,4563.1,0.0113888]
[1756264769820,3.0,4564.2,4563.0,0.4371]
[1756264770026,2.19101246,4564.1,4563.4,0.4371]
[1756264770222,2.19107023,4564.0,4563.4,0.4371]
[1756264770650,3.0,4564.2,4563.0,2.19152536]
[1756264770651,2.48550848,4563.9,4563.0,3.921]
[1756264770827,2.48550848,4563.9,4562.9,0.4371]
[1756264771155,2.48550848,4563.9,4563.0,3.706]
[1756264771330,2.48550848,4563.9,4562.9,2.62868031]
[1756264771530,2.48550848,4563.9,4562.9,3.918]
[1756264771726,2.51289733,4563.9,4562.8,0.02]
[1756264771940,2.48550848,4563.9,4562.9,2.1721]
[1756264772468,5.49572164,4563.9,4562.8,0.02]
[1756264772628,2.19158868,4562.9,4562.8,0.02]
[1756264773125,2.48598868,4562.9,4562.8,0.02]
[1756264773327,0.2944,4562.9,4562.8,0.02]
[1756264773554,2.48598868,4562.9,4562.8,0.02]
[1756264773742,0.2944,4562.9,4562.8,0.02]
[1756264773944,0.34298204,4563.5,4562.8,0.3317]
[1756264774148,2.19135027,4563.4,4562.8,0.3317]
[1756264774459,3.0,4563.4,4562.8,0.02]
[1756264774658,0.34298204,4563.5,4562.8,0.02]
[1756264774659,2.59558868,4562.9,4562.8,0.02]
[1756264774874,0.404,4562.9,4562.8,0.02]
[1756264775057,0.404,4562.9,4562.8,0.3317]
[1756264775058,0.1096,4562.9,4562.8,0.3317]
[1756264775265,0.1096,4562.9,4562.8,0.02]
[1756264776060,5.19134772,4563.5,4562.8,0.3317]
[1756264776261,0.1096,4563.2,4562.8,0.02]
[1756264776760,0.1096,4563.2,4562.8,0.4571]
[1756264776963,0.1096,4563.2,4562.8,0.02]
[1756264777463,0.1096,4563.2,4563.1,0.3117]
[1756264777874,2.19123174,4563.7,4563.1,0.3117]
[1756264777875,3.0,4564.2,4563.1,0.3117]
[1756264778039,0.1096,4563.6,4563.1,0.7488]
[1756264778372,0.1096,4563.6,4563.2,0.4371]
[1756264778870,0.1096,4563.6,4563.5,0.3117]
[1756264779264,3.0,4564.2,4563.5,0.3117]
[1756264779265,0.1096,4563.8,4563.5,0.7488]
[1756264779438,0.1096,4563.8,4563.6,0.4371]
[1756264779834,0.1096,4563.8,4563.3,3.917]
[1756264780040,0.1096,4563.8,4563.3,3.915]
[1756264780252,0.1096,4563.8,4563.7,0.3117]
[1756264780768,0.1096,4564.2,4563.7,0.7488]
[1756264781076,0.1096,4564.2,4563.8,0.4371]
[1756264781363,0.34291502,4564.4,4563.8,0.4371]
[1756264781564,0.34291502,4564.4,4564.1,0.3117]
[1756264781868,0.1096,4564.5,4564.2,0.4371]
[1756264782034,0.34286956,4564.8,4564.4,0.3117]
[1756264782230,0.1096,4564.7,4564.4,0.7488]
[1756264782435,0.1096,4564.7,4564.4,0.3117]
[1756264782658,2.19077246,4564.6,4564.4,0.3117]
[1756264782875,3.1096,4564.7,4564.4,0.3117]
[1756264783050,0.1096,4564.7,4564.4,0.3117]
[1756264783467,5.3003291,4564.7,4564.4,0.3117]
[1756264783689,5.3003291,4564.7,4564.0,2.1221]
[1756264783690,5.19080793,4564.6,4564.0,1.685]
[1756264783893,2.19083201,4564.5,4564.0,1.685]
[1756264784108,0.2944,4564.1,4563.2,1.685]
[1756264784400,0.2944,4564.1,4563.2,2.1221]
[1756264784598,0.5300432,4564.4,4563.3,0.4484902]
[1756264784766,0.20235558,4564.3,4563.3,0.4371]
[1756264784969,2.19111977,4563.9,4563.8,0.001]
[1756264785156,0.2944,4563.9,4563.8,0.001]
[1756264785360,0.5300432,4564.4,4563.8,0.3127]
[1756264785564,2.19101453,4564.1,4563.8,0.3127]
[1756264785965,2.19107764,4564.0,4563.8,0.001]
[1756264786166,0.2944,4563.9,4563.8,0.001]
[1756264786366,2.48550848,4563.9,4563.8,0.001]
[1756264786592,2.19106161,4564.0,4563.8,0.001]
[1756264787571,2.1910799,4564.0,4563.8,0.001]
[1756264788165,2.48550848,4563.9,4563.8,0.001]
[1756264788563,0.2944,4563.9,4563.8,0.001]
[1756264789989,0.53511122,4564.2,4563.8,0.001]
[1756264790159,0.34290323,4564.5,4563.8,0.3127]
[1756264790361,2.19093062,4564.3,4563.8,0.3127]
[1756264790668,0.34290323,4564.5,4563.9,0.4371]
[1756264790871,0.34290323,4564.5,4564.4,0.3117]
[1756264791198,0.002,4564.6,4564.4,0.3117]
[1756264791694,2.19082046,4564.5,4564.4,0.3117]
[1756264792689,0.002,4564.6,4564.4,0.3117]
[1756264792892,0.20466985,4564.6,4564.4,0.3117]
[1756264793094,0.002,4564.6,4564.4,0.7488]
[1756264793294,2.39544285,4564.6,4564.4,0.3117]
[1756264793459,0.002,4564.6,4564.4,0.3117]
[1756264793661,0.20475957,4564.6,4564.4,0.3117]
[1756264793895,0.002,4564.6,4564.4,0.7488]
[1756264794292,0.002,4564.6,4564.4,0.3117]
[1756264795565,0.002,4564.6,4564.5,0.4371]
[1756264796100,0.002,4564.6,4564.5,0.7488]
[1756264796865,0.002,4564.6,4564.5,3.2449706]
[1756264797065,0.002,4564.6,4564.5,3.9049706]
[1756264797302,0.002,4564.6,4564.5,7.0145706]
[1756264797510,0.002,4564.6,4564.5,6.55109195]
[1756264797666,0.002,4564.6,4564.5,10.87749195]
[1756264798210,0.002,4564.6,4564.5,6.99249195]
[1756264798499,0.002,4564.6,4564.5,10.87649195]
[1756264800909,0.2892,4564.6,4564.1,1.685]
[1756264801202,0.4572,4564.5,4564.1,5.562]
[1756264801501,2.19090909,4564.4,4564.1,5.562]
[1756264801670,0.44932483,4564.4,4564.1,5.562]
[1756264801871,2.1927785,4564.6,4564.1,5.562]
[1756264802306,2.19083228,4564.5,4564.1,5.562]
[1756264802711,0.002,4564.6,4564.1,5.562]
[1756264803397,2.1927746,4564.6,4564.1,5.562]
[1756264803792,2.19082702,4564.5,4564.1,5.562]
[1756264804103,0.002,4564.6,4564.4,0.2967]
[1756264804306,0.002,4564.6,4564.5,3.876]
[1756264804507,2.19277246,4564.6,4564.5,3.876]
[1756264804672,0.2872,4564.3,4564.1,1.685]
[1756264804874,0.2872,4564.3,4564.2,3.873]
[1756264805088,2.47812242,4564.3,4564.2,3.873]
[1756264805306,2.19286562,4564.5,4564.2,3.873]
[1756264805498,0.002,4564.5,4564.2,4.1697]
[1756264806076,0.002,4564.5,4564.3,0.4414]
[1756264806284,0.002,4564.5,4564.3,0.45278058]
[1756264806481,0.002,4564.5,4564.4,0.2967]
[1756264807117,0.002,4564.5,4564.4,4.1657]
[1756264807428,0.2892,4564.5,4564.4,3.868]
[1756264807621,0.2892,4564.5,4564.2,0.1096]
[1756264807818,2.48006137,4564.5,4564.3,3.869]
[1756264808325,2.93726137,4564.5,4564.2,0.1096]
[1756264808520,2.19086846,4564.4,4564.3,3.868]
[1756264808721,2.19086846,4564.4,4564.2,0.1096]
[1756264808722,2.47806846,4564.4,4564.2,0.1096]
[1756264808927,2.19091646,4564.3,4564.2,0.1096]
[1756264809094,2.64811646,4564.3,4564.2,0.1096]
[1756264809421,2.19101246,4564.1,4564.0,3.867]
[1756264809627,2.47821246,4564.1,4564.0,3.867]
[1756264809946,2.19110848,4563.9,4563.8,3.868]
[1756264810130,2.47830848,4563.9,4563.8,3.868]
[1756264810290,5.47830848,4563.9,4563.8,3.868]
[1756264810622,5.47830848,4563.9,4563.8,0.001]
[1756264810788,6.18314316,4563.9,4563.8,0.001]
[1756264810986,6.29274316,4563.9,4563.8,0.001]
[1756264813626,2.19151459,4563.1,4562.8,0.913]
[1756264813829,2.58838868,4562.9,4562.8,0.913]
[1756264814219,2.58838868,4562.9,4562.8,0.02]
[1756264815331,2.30118868,4562.9,4562.8,0.02]
[1756264815711,2.58838868,4562.9,4562.8,0.02]
[1756264817209,2.30118868,4562.9,4562.8,0.02]
[1756264817419,2.58838868,4562.9,4562.8,0.02]
[1756264818298,2.88231553,4562.9,4562.8,0.02]
[1756264818504,3.33951553,4562.9,4562.8,0.02]
[1756264818932,2.88231553,4562.9,4562.8,0.02]
[1756264819753,3.33951553,4562.9,4562.8,0.02]
[1756264820042,2.88231553,4562.9,4562.8,0.02]
[1756264820846,3.33951553,4562.9,4562.8,0.02]
[1756264821931,6.68250609,4562.9,4562.8,0.02]
[1756264823313,6.68250609,4562.9,4561.8,1.706]
[1756264823314,2.19206909,4561.9,4561.8,1.706]
[1756264823528,2.19206909,4561.9,4561.8,2.0027]
[1756264824727,2.19206909,4561.9,4561.8,2.0067]
[1756264825308,2.47926909,4561.9,4561.8,0.024]
[1756264825556,2.19206909,4561.9,4561.8,0.3207]
[1756264825914,2.19206909,4561.9,4561.8,0.024]
[1756264826238,2.47926909,4561.9,4561.8,0.024]
[1756264826613,2.19206909,4561.9,4561.8,0.024]
[1756264827710,5.73160377,4561.9,4561.8,0.024]
[1756264828017,6.16330377,4561.9,4561.8,0.024]
[1756264828408,2.19218107,4561.7,4560.8,0.02]
[1756264828613,3.0,4561.8,4560.8,0.02]
[1756264828614,3.0,4561.5,4560.8,0.02]
[1756264828821,3.0,4561.7,4560.9,0.4383]
[1756264829048,0.02740266,4561.6,4560.9,0.4383]
[1756264829252,2.19236987,4561.3,4560.9,0.3883]
[1756264829425,2.19241773,4561.2,4560.8,0.02]
[1756264829820,3.0,4561.5,4560.8,0.02]
[1756264830025,0.2919,4560.9,4560.8,0.02]
[1756264830229,2.19230937,4561.4,4560.8,0.02]
[1756264830425,2.19230937,4561.4,4560.8,0.336]
[1756264831152,2.19230937,4561.4,4560.8,0.7743]
[1756264831322,3.0,4561.6,4560.8,0.7743]
[1756264831323,3.857,4562.0,4560.9,0.4383]
[1756264831524,2.19235736,4561.4,4560.9,0.4383]
[1756264832029,2.19240259,4561.3,4560.8,0.02]
[1756264832232,2.19235424,4561.4,4560.9,0.4383]
[1756264832431,0.44727016,4562.0,4561.2,0.316]
[1756264832630,3.0,4562.1,4561.3,0.4383]
[1756264832832,2.19197763,4562.1,4561.1,2.19245163]
[1756264833031,13.75286094,4561.9,4560.8,0.02]
[1756264833235,13.75286094,4561.9,4560.8,0.4583]
[1756264833236,2.19231064,4561.4,4560.8,0.4583]
[1756264833554,2.19221325,4561.6,4560.8,0.4583]
[1756264833717,2.19238059,4561.3,4560.8,0.4583]
[1756264833925,2.19236505,4561.3,4560.9,0.4383]
[1756264834122,2.19230154,4561.5,4560.9,0.4383]
[1756264834473,2.1922048,4561.7,4560.9,0.4383]
[1756264834673,2.19232363,4561.4,4560.8,0.02]
[1756264834819,2.19217484,4561.7,4560.9,0.4383]
[1756264835020,3.0,4561.8,4560.9,0.4383]
[1756264835450,0.1096,4561.6,4560.9,0.5479]
[1756264835659,0.1096,4561.6,4561.5,0.316]
[1756264835955,0.1096,4561.9,4561.5,0.316]
[1756264836263,2.30167342,4561.9,4561.6,0.4383]
[1756264836426,0.1096,4561.9,4561.3,1.7956]
[1756264836628,0.1096,4562.1,4561.8,0.316]
[1756264836827,0.4317,4562.6,4561.8,0.316]
[1756264836828,2.19187166,4562.4,4561.8,0.316]
[1756264837047,2.19193057,4562.2,4561.8,0.316]
[1756264837336,2.19193057,4562.2,4561.5,0.1096]
[1756264837337,0.2919,4561.9,4561.5,0.1096]
[1756264837548,2.19226044,4561.6,4561.3,1.686]
[1756264837929,2.19230937,4561.4,4561.3,1.686]
[1756264838125,2.1922501,4561.6,4561.3,1.686]
[1756264838449,2.1922501,4561.6,4561.3,2.002]
[1756264838647,2.19204055,4562.0,4561.4,0.4383]
[1756264838842,2.19204055,4562.0,4561.4,0.44971587]
[1756264838843,0.1096,4562.0,4561.4,0.44971587]
[1756264839037,2.30163202,4562.0,4561.4,0.4383]
[1756264839227,0.1096,4562.0,4561.5,3.87841325]
[1756264839433,0.1096,4562.0,4561.9,0.316]
[1756264839629,0.659254,4562.4,4561.6,0.4383]
[1756264839834,2.19202478,4562.0,4561.7,0.1096]
[1756264840268,2.19192494,4562.2,4561.7,0.1096]
[1756264840451,2.48401714,4561.8,4561.7,3.866]
[1756264840636,2.59361714,4561.8,4561.7,3.866]
[1756264840831,0.4317,4562.7,4561.7,4.6203]
[1756264841067,2.19196973,4562.2,4561.7,4.6203]
[1756264841267,0.1096,4562.2,4561.7,4.182]
[1756264841469,0.1096,4562.2,4561.7,3.866]
[1756264841642,2.19197299,4562.1,4561.7,3.866]
[1756264841965,0.13699906,4562.2,4561.7,3.866]
[1756264842266,0.2919,4561.8,4561.7,3.866]
[1756264842656,0.2919,4561.8,4561.6,3.9746]
[1756264842971,0.001,4562.0,4561.5,3.865]
[1756264843461,6.30509912,4561.9,4561.5,3.865]
[1756264843765,0.2919,4561.6,4561.5,3.865]
[1756264844143,2.19212186,4561.8,4561.5,3.865]
[1756264844477,0.2919,4561.6,4561.3,1.7956]
[1756264844639,0.2919,4561.6,4561.4,3.862]
[1756264844837,0.1096,4561.8,4561.5,0.316]
[1756264845163,2.30175684,4561.8,4561.5,0.316]
[1756264845656,2.30175684,4561.8,4561.5,4.177]
[1756264845869,6.30609912,4562.0,4561.5,4.6153]
[1756264845870,0.001,4562.0,4561.5,4.6153]
[1756264846075,0.001,4562.0,4561.9,2.19206909]
[1756264846237,0.001,4562.0,4561.9,2.20347896]
[1756264846441,0.001,4562.0,4561.9,3.45213338]
[1756264847339,0.001,4562.0,4561.9,4.22173338]
[1756264847569,0.001,4562.0,4561.9,4.21032351]
[1756264848272,0.002,4564.6,4562.7,2.19168474]
[1756264848472,0.1096,4564.3,4562.7,8.17502932]
[1756264848781,0.1096,4564.3,4562.7,9.03892932]
[1756264849072,0.002,4564.6,4562.7,9.58932932]
[1756264849073,0.1116,4564.5,4562.7,9.58932932]
[1756264849286,0.1116,4564.5,4562.7,9.69892932]
[1756264849287,0.002,4564.5,4562.7,9.69892932]
[1756264849873,1e-08,4562.8,4562.7,12.69892932]
[1756264853578,1e-08,4562.8,4562.7,12.69092932]
[1756264854663,1e-08,4562.8,4562.7,8.83992932]
[1756264854994,1e-08,4562.8,4562.7,12.68992932]
[1756264855754,1e-08,4562.8,4562.7,12.77776932]
[1756264857250,1e-08,4562.8,4562.7,12.77796932]
[1756264858482,1e-08,4562.8,4562.7,8.92796932]
[1756264858781,1e-08,4562.8,4562.7,12.77196932]
[1756264860561,1e-08,4562.8,4562.7,15.19522807]
[1756264861082,1e-08,4562.8,4562.7,9.04222807]
[1756264861285,1e-08,4562.8,4562.7,12.88022807]
[1756264861448,1e-08,4562.8,4562.7,15.18922807]
[1756264864755,1e-08,4562.8,4562.7,11.35122807]
[1756264865001,1e-08,4562.8,4562.7,15.18622807]
[1756264865399,0.28600001,4562.8,4562.7,4.62772807]
[1756264865565,0.74850001,4562.8,4562.7,4.07512474]
[1756264866065,0.74850001,4562.8,4562.7,7.82228474]
[1756264866599,0.74850001,4562.8,4562.7,3.98728474]
[1756264866771,0.74850001,4562.8,4562.7,7.82428474]
[1756264867175,0.74850001,4562.8,4562.7,3.98728474]
[1756264867403,0.74850001,4562.8,4562.7,5.6316]
[1756264867705,0.74850001,4562.8,4562.7,5.6306]
[1756264868001,0.74850001,4562.8,4562.7,5.521]
[1756264868206,2.94013672,4562.8,4562.7,5.521]
[1756264868391,3.23415039,4562.8,4562.5,0.1096]
[1756264868702,1.15211368,4562.8,4562.6,3.835]
[1756264868868,0.4625,4562.7,4562.6,3.835]
[1756264869201,2.94018474,4562.7,4562.6,3.835]
[1756264869529,2.94018474,4562.7,4562.2,0.1096]
[1756264869530,2.19174464,4562.6,4562.2,0.1096]
[1756264869670,0.77589605,4562.7,4562.3,3.835]
[1756264870019,0.286,4562.4,4562.2,0.1096]
[1756264870198,0.286,4562.4,4562.3,3.834]
[1756264870405,0.7485,4562.4,4562.3,3.834]
[1756264870790,0.7485,4562.4,4562.3,3.833]
[1756264873198,0.7485,4562.4,4561.9,1.685]
[1756264873416,2.32891868,4562.3,4561.9,1.685]
[1756264873586,2.19198706,4562.1,4562.0,3.828]
[1756264873771,2.94048706,4562.1,4562.0,3.828]
[1756264874413,5.94048706,4562.1,4562.0,3.828]
[1756264875490,2.19206909,4561.9,4561.8,0.02]
[1756264875690,5.9768825,4561.9,4561.8,3.847]
[1756264875888,6.23548164,4561.9,4561.8,3.847]
[1756264876103,6.69798164,4561.9,4561.8,3.846]
[1756264876298,6.80758164,4561.9,4561.8,3.846]
[1756264877581,6.80758164,4561.9,4561.8,0.02]
[1756264877894,6.80758164,4561.9,4561.8,3.845]
[1756264878314,6.80758164,4561.9,4561.8,3.842]
[1756264878900,7.15063366,4561.9,4561.8,3.842]
[1756264879578,7.15063366,4561.9,4561.8,3.846]
[1756264882602,0.34305202,4561.9,4561.8,6.32531714]
[1756264882810,2.19166314,4562.8,4561.8,4.1332]
[1756264883014,5.19173278,4562.6,4561.8,4.1332]
[1756264883699,3.0,4562.6,4561.8,4.1332]
[1756264884094,3.0,4562.6,4561.9,2.19205751]
[1756264884332,3.0,4562.6,4561.8,3.846]
[1756264885031,3.0,4562.6,4561.9,3.818]
[1756264885424,2.19177909,4562.6,4561.9,3.818]
[1756264885607,2.19181003,4562.5,4561.9,3.818]
[1756264885935,3.0,4562.6,4561.9,3.818]
[1756264886101,5.19168212,4562.8,4561.9,6.01005152]
[1756264886304,5.19168212,4562.8,4561.9,6.47735152]
[1756264886724,3.00000001,4562.8,4561.9,4.2853]
[1756264886930,3.34625001,4562.8,4561.9,4.2853]
[1756264887305,2.53790283,4562.8,4561.9,4.2853]
[1756264887505,0.3025,4562.0,4561.8,0.024]
[1756264887728,0.3025,4562.0,4561.9,3.812]
[1756264888606,2.19183196,4562.4,4561.9,3.812]
[1756264888803,2.64353196,4562.4,4561.9,3.812]
[1756264889003,0.02739665,4562.6,4561.9,3.812]
[1756264889236,2.19162611,4562.9,4561.9,3.812]
[1756264889402,3.00000001,4562.8,4561.9,3.812]
[1756264889606,3.0,4562.6,4561.9,3.812]
[1756264889814,0.4517,4562.7,4561.9,3.812]
[1756264890054,2.19187745,4562.3,4561.9,3.812]
[1756264890707,0.4517,4562.7,4561.9,3.812]
[1756264890909,0.3025,4562.0,4561.8,0.024]
[1756264891109,0.26433801,4562.6,4561.8,0.024]
[1756264891313,0.45170001,4562.8,4561.8,0.024]
[1756264891619,2.19192659,4562.2,4561.8,0.024]
[1756264891815,2.19187848,4562.3,4561.8,0.024]
[1756264892235,2.19183239,4562.4,4561.8,0.024]
[1756264892737,0.1096,4562.7,4562.3,0.3078]
[1756264892944,5.30129991,4562.7,4562.4,3.812]
[1756264893245,0.3025,4562.5,4562.4,3.812]
[1756264894755,0.1096,4562.7,4562.4,4.1198]
[1756264895067,0.34300792,4562.8,4562.4,4.2294]
[1756264895205,0.34300792,4562.8,4562.1,1.686]
[1756264895206,2.49428082,4562.5,4562.1,1.686]
[1756264895409,0.3025,4562.5,4562.2,3.808]
[1756264896210,0.4517,4562.4,4562.1,1.7956]
[1756264896539,0.3025,4562.2,4562.1,1.686]
[1756264896846,0.3025,4562.2,4562.1,5.493]
[1756264897040,0.3025,4562.2,4562.1,1.686]
[1756264897343,0.3025,4562.2,4562.1,5.492]
[1756264897842,0.34300471,4562.4,4562.1,5.492]
[1756264898845,0.34300471,4562.4,4562.3,0.3078]
[1756264899217,0.34300471,4562.4,4562.3,0.75]
[1756264899619,1e-08,4562.8,4562.3,0.75]
[1756264900830,1e-08,4562.8,4562.4,0.4422]